[Event "Titled Tuesday Blitz May 2 Early 2023"]
[White "Panda Sambit"]
[Black "Floresvillar Gonzalez, Luis Migu"]
[WhiteFideId "25091794"]
[BlackFideId "5100542"]
[WhiteElo "2272"]
[BlackElo "2040"]
[Result "1-0"]
[Round "05"]
[TimeControl "180+2"]
[Date "2023.05.02"]
[WhiteClock "0:00:39"]
[BlackClock "0:00:05"]

1. Nf3 {[%clk 0:02:56]}  d5 {[%clk 0:02:58]} 2. e3 {[%clk 0:02:56]}  c6 {[%clk 0:02:58]} 3. b3 {[%clk 0:02:57]}  Bg4 {[%clk 0:02:57]} 4. Bb2 {[%clk 0:02:57]}  Nd7 {[%clk 0:02:57]} 5. Be2 {[%clk 0:02:58]}  Qc7 {[%clk 0:02:55]} 6. d4 {[%clk 0:02:56]}  e6 {[%clk 0:02:50]} 7. O-O {[%clk 0:02:55]}  f5 {[%clk 0:02:47]} 8. c4 {[%clk 0:02:55]}  Ngf6 {[%clk 0:02:45]} 9. Nbd2 {[%clk 0:02:56]}  Be7 {[%clk 0:02:40]} 10. h3 {[%clk 0:02:55]}  Bxf3 {[%clk 0:02:39]} 11. Nxf3 {[%clk 0:02:55]}  O-O {[%clk 0:02:38]} 12. Rc1 {[%clk 0:02:54]}  Rae8 {[%clk 0:02:35]} 13. Qc2 {[%clk 0:02:41]}  Ne4 {[%clk 0:02:28]} 14. Ne1 {[%clk 0:02:35]}  Qd6 {[%clk 0:02:19]} 15. Nd3 {[%clk 0:02:33]}  Bd8 {[%clk 0:02:13]} 16. cxd5 {[%clk 0:02:26]}  exd5 {[%clk 0:02:12]} 17. Ne5 {[%clk 0:02:25]}  Bc7 {[%clk 0:01:51]} 18. Bd3 {[%clk 0:02:02]}  Nxe5 {[%clk 0:01:39]} 19. dxe5 {[%clk 0:02:02]}  Qe6 {[%clk 0:01:35]} 20. Rfe1 {[%clk 0:01:57]}  Bxe5 {[%clk 0:01:31]} 21. Ba3 {[%clk 0:01:56]}  Bd6 {[%clk 0:01:23]} 22. Bb2 {[%clk 0:01:54]}  Be5 {[%clk 0:01:21]} 23. Ba3 {[%clk 0:01:54]}  Rf7 {[%clk 0:01:21]} 24. Rcd1 {[%clk 0:01:42]}  Bc7 {[%clk 0:01:18]} 25. Bb2 {[%clk 0:01:40]}  Qd6 {[%clk 0:01:16]} 26. g3 {[%clk 0:01:37]}  h5 {[%clk 0:01:02]} 27. h4 {[%clk 0:01:36]}  Re6 {[%clk 0:01:00]} 28. Kf1 {[%clk 0:01:26]}  Rg6 {[%clk 0:00:59]} 29. Ke2 {[%clk 0:01:23]}  Re7 {[%clk 0:00:38]} 30. Rg1 {[%clk 0:01:22]}  Rg4 {[%clk 0:00:25]} 31. Rdf1 {[%clk 0:01:21]}  Rg6 {[%clk 0:00:20]} 32. Kd1 {[%clk 0:01:21]}  Bb6 {[%clk 0:00:16]} 33. Kc1 {[%clk 0:01:20]}  a5 {[%clk 0:00:14]} 34. Kb1 {[%clk 0:01:20]}  Rge6 {[%clk 0:00:13]} 35. Rg2 {[%clk 0:01:10]}  g6 {[%clk 0:00:11]} 36. f3 {[%clk 0:00:55]}  Nxg3 {[%clk 0:00:09]} 37. Rfg1 {[%clk 0:00:55]}  f4 {[%clk 0:00:06]} 38. exf4 {[%clk 0:00:46]}  Re1+ {[%clk 0:00:05]} 39. Bc1 {[%clk 0:00:39]} 1-0


[Site "https://www.chess.com"]

[Event "Titled Tuesday Blitz May 2 Early 2023"]
[White "Kiseljova, Marya"]
[Black "Rodriguez Santiago, Jaime"]
[WhiteFideId "4155009"]
[BlackFideId "3100898"]
[WhiteElo "1851"]
[BlackElo "2025"]
[Result "0-1"]
[Round "05"]
[TimeControl "180+2"]
[Date "2023.05.02"]
[WhiteClock "0:00:05"]
[BlackClock "0:00:13"]

1. d4 {[%clk 0:02:59]}  Nf6 {[%clk 0:02:59]} 2. c4 {[%clk 0:02:59]}  e6 {[%clk 0:02:59]} 3. Bf4 {[%clk 0:02:54]}  d5 {[%clk 0:02:58]} 4. Nf3 {[%clk 0:02:47]}  c6 {[%clk 0:02:57]} 5. e3 {[%clk 0:02:46]}  Nbd7 {[%clk 0:02:57]} 6. Nbd2 {[%clk 0:02:44]}  Nh5 {[%clk 0:02:47]} 7. Bg5 {[%clk 0:02:35]}  Be7 {[%clk 0:02:45]} 8. Bxe7 {[%clk 0:02:27]}  Qxe7 {[%clk 0:02:46]} 9. cxd5 {[%clk 0:02:23]}  exd5 {[%clk 0:02:45]} 10. Ne5 {[%clk 0:02:03]}  Nxe5 {[%clk 0:02:29]} 11. Qxh5 {[%clk 0:02:01]}  Ng4 {[%clk 0:02:25]} 12. g3 {[%clk 0:01:24]}  g6 {[%clk 0:01:47]} 13. Qh4 {[%clk 0:01:23]}  g5 {[%clk 0:01:47]} 14. Qh5 {[%clk 0:01:21]}  h6 {[%clk 0:01:47]} 15. Be2 {[%clk 0:01:16]}  Nf6 {[%clk 0:01:41]} 16. Qf3 {[%clk 0:01:15]}  Bg4 {[%clk 0:01:34]} 17. Qg2 {[%clk 0:01:15]}  Bxe2 {[%clk 0:01:34]} 18. Kxe2 {[%clk 0:01:16]}  Qb4 {[%clk 0:01:25]} 19. Rab1 {[%clk 0:01:02]}  Qb5+ {[%clk 0:01:23]} 20. Ke1 {[%clk 0:00:57]}  O-O-O {[%clk 0:01:18]} 21. Qf1 {[%clk 0:00:55]}  Qa5 {[%clk 0:01:16]} 22. Qd3 {[%clk 0:00:46]}  Rhe8 {[%clk 0:01:04]} 23. Qf5+ {[%clk 0:00:40]}  Nd7 {[%clk 0:00:57]} 24. a3 {[%clk 0:00:41]}  Re7 {[%clk 0:00:52]} 25. Ke2 {[%clk 0:00:34]}  Rde8 {[%clk 0:00:50]} 26. Rhd1 {[%clk 0:00:32]}  Qa6+ {[%clk 0:00:49]} 27. Qd3 {[%clk 0:00:32]}  Qb6 {[%clk 0:00:44]} 28. b4 {[%clk 0:00:29]}  Nf6 {[%clk 0:00:43]} 29. Kf1 {[%clk 0:00:26]}  Qc7 {[%clk 0:00:36]} 30. Qf5+ {[%clk 0:00:26]}  Nd7 {[%clk 0:00:34]} 31. Nb3 {[%clk 0:00:26]}  Kb8 {[%clk 0:00:32]} 32. Nc5 {[%clk 0:00:26]}  Nxc5 {[%clk 0:00:32]} 33. bxc5 {[%clk 0:00:26]}  Re4 {[%clk 0:00:27]} 34. Kg2 {[%clk 0:00:22]}  Qe7 {[%clk 0:00:17]} 35. Rb3 {[%clk 0:00:21]}  a6 {[%clk 0:00:17]} 36. Rdb1 {[%clk 0:00:21]}  b5 {[%clk 0:00:16]} 37. cxb6 {[%clk 0:00:20]}  Kb7 {[%clk 0:00:16]} 38. a4 {[%clk 0:00:20]}  Qd6 {[%clk 0:00:12]} 39. a5 {[%clk 0:00:20]}  R8e7 {[%clk 0:00:12]} 40. Qf3 {[%clk 0:00:18]}  R4e6 {[%clk 0:00:12]} 41. Qe2 {[%clk 0:00:18]}  Rf6 {[%clk 0:00:12]} 42. Rc1 {[%clk 0:00:17]}  Qe6 {[%clk 0:00:12]} 43. Qd3 {[%clk 0:00:14]}  g4 {[%clk 0:00:11]} 44. Rbc3 {[%clk 0:00:14]}  Rf5 {[%clk 0:00:10]} 45. Rxc6 {[%clk 0:00:12]}  Qe4+ {[%clk 0:00:11]} 46. Qxe4 {[%clk 0:00:12]}  dxe4 {[%clk 0:00:11]} 47. Rc7+ {[%clk 0:00:12]}  Rxc7 {[%clk 0:00:12]} 48. Rxc7+ {[%clk 0:00:13]}  Kb8 {[%clk 0:00:12]} 49. Ra7 {[%clk 0:00:12]}  Rxa5 {[%clk 0:00:12]} 50. Rxf7 {[%clk 0:00:12]}  Rb5 {[%clk 0:00:12]} 51. Rf6 {[%clk 0:00:11]}  a5 {[%clk 0:00:12]} 52. Rxh6 {[%clk 0:00:10]}  a4 {[%clk 0:00:12]} 53. Rc6 {[%clk 0:00:08]}  a3 {[%clk 0:00:12]} 54. Rc3 {[%clk 0:00:07]}  Ra5 {[%clk 0:00:11]} 55. Rc2 {[%clk 0:00:07]}  a2 {[%clk 0:00:12]} 56. Rxa2 {[%clk 0:00:03]}  Rxa2 {[%clk 0:00:11]} 57. d5 {[%clk 0:00:03]}  Kb7 {[%clk 0:00:11]} 58. h3 {[%clk 0:00:03]}  gxh3+ {[%clk 0:00:11]} 59. Kxh3 {[%clk 0:00:04]}  Rxf2 {[%clk 0:00:12]} 60. g4 {[%clk 0:00:02]}  Kxb6 {[%clk 0:00:12]} 61. Kh4 {[%clk 0:00:02]}  Kc5 {[%clk 0:00:12]} 62. g5 {[%clk 0:00:03]}  Kxd5 {[%clk 0:00:13]} 63. Kh5 {[%clk 0:00:04]}  Ke6 {[%clk 0:00:13]} 64. g6 {[%clk 0:00:05]}  Kf6 {[%clk 0:00:13]} 65. Kh6 {[%clk 0:00:05]}  Rh2# {[%clk 0:00:13]} 0-1


[Site "https://www.chess.com"]

[Event "Titled Tuesday Blitz May 2 Early 2023"]
[White "Buscar, Michael"]
[Black "Vargas Rodriguez, Wilver"]
[WhiteFideId "2603616"]
[BlackFideId "3509672"]
[WhiteElo "2010"]
[BlackElo "2224"]
[Result "0-1"]
[Round "05"]
[TimeControl "180+2"]
[Date "2023.05.02"]
[WhiteClock "0:01:12"]
[BlackClock "0:00:08"]

1. c4 {[%clk 0:02:59]}  c5 {[%clk 0:02:56]} 2. Nf3 {[%clk 0:02:58]}  Nc6 {[%clk 0:02:56]} 3. g3 {[%clk 0:02:58]}  g6 {[%clk 0:02:56]} 4. Bg2 {[%clk 0:02:58]}  Bg7 {[%clk 0:02:56]} 5. O-O {[%clk 0:02:58]}  e6 {[%clk 0:02:55]} 6. Nc3 {[%clk 0:02:55]}  Nge7 {[%clk 0:02:54]} 7. d3 {[%clk 0:02:54]}  O-O {[%clk 0:02:54]} 8. Bg5 {[%clk 0:02:50]}  Rb8 {[%clk 0:02:45]} 9. Qd2 {[%clk 0:02:41]}  Re8 {[%clk 0:02:42]} 10. Bh6 {[%clk 0:02:38]}  Bh8 {[%clk 0:02:42]} 11. h4 {[%clk 0:02:34]}  a6 {[%clk 0:02:33]} 12. h5 {[%clk 0:02:30]}  b5 {[%clk 0:02:29]} 13. cxb5 {[%clk 0:02:28]}  axb5 {[%clk 0:02:29]} 14. hxg6 {[%clk 0:02:28]}  hxg6 {[%clk 0:02:29]} 15. Ne4 {[%clk 0:02:11]}  d6 {[%clk 0:01:57]} 16. Bg5 {[%clk 0:02:09]}  Qa5 {[%clk 0:01:38]} 17. Qf4 {[%clk 0:02:03]}  e5 {[%clk 0:01:04]} 18. Nf6+ {[%clk 0:01:48]}  Bxf6 {[%clk 0:00:25]} 19. Qxf6 {[%clk 0:01:46]}  Nf5 {[%clk 0:00:19]} 20. g4 {[%clk 0:01:37]}  Re6 {[%clk 0:00:19]} 21. gxf5 {[%clk 0:01:31]}  Rxf6 {[%clk 0:00:19]} 22. Bxf6 {[%clk 0:01:32]}  Bxf5 {[%clk 0:00:19]} 23. Ng5 {[%clk 0:01:30]}  Nd4 {[%clk 0:00:18]} 24. Bd5 {[%clk 0:01:30]}  Nxe2+ {[%clk 0:00:17]} 25. Kh2 {[%clk 0:01:28]}  Be6 {[%clk 0:00:15]} 26. Bf3 {[%clk 0:01:24]}  Nf4 {[%clk 0:00:15]} 27. Kg3 {[%clk 0:01:24]}  Nh5+ {[%clk 0:00:14]} 28. Bxh5 {[%clk 0:01:23]}  gxh5 {[%clk 0:00:13]} 29. Rh1 {[%clk 0:01:24]}  Bg4 {[%clk 0:00:11]} 30. f3 {[%clk 0:01:24]}  Qd2 {[%clk 0:00:09]} 31. fxg4 {[%clk 0:01:13]}  Qf4+ {[%clk 0:00:09]} 32. Kh4 {[%clk 0:01:12]}  Qxg4# {[%clk 0:00:08]} 0-1


[Site "https://www.chess.com"]

[Event "Titled Tuesday Blitz May 2 Early 2023"]
[White "Hartikainen, Jarmo"]
[Black "Barria Santos, Jose Guilherme"]
[WhiteFideId "503134"]
[BlackFideId "1939300"]
[WhiteElo "2108"]
[BlackElo "2266"]
[Result "1-0"]
[Round "05"]
[TimeControl "180+2"]
[Date "2023.05.02"]
[WhiteClock "0:00:14"]
[BlackClock "0:00:27"]

1. e4 {[%clk 0:03:00]}  c5 {[%clk 0:03:00]} 2. c3 {[%clk 0:03:00]}  Nf6 {[%clk 0:02:59]} 3. e5 {[%clk 0:03:00]}  Nd5 {[%clk 0:02:59]} 4. d4 {[%clk 0:03:00]}  cxd4 {[%clk 0:03:00]} 5. Nf3 {[%clk 0:03:00]}  Nc6 {[%clk 0:02:55]} 6. cxd4 {[%clk 0:02:58]}  d6 {[%clk 0:02:55]} 7. Nc3 {[%clk 0:02:57]}  e6 {[%clk 0:02:54]} 8. Bd3 {[%clk 0:02:36]}  Be7 {[%clk 0:02:51]} 9. Qe2 {[%clk 0:02:31]}  h6 {[%clk 0:02:48]} 10. Bd2 {[%clk 0:02:27]}  O-O {[%clk 0:02:47]} 11. O-O {[%clk 0:02:14]}  a6 {[%clk 0:02:45]} 12. Rac1 {[%clk 0:02:09]}  Bd7 {[%clk 0:02:43]} 13. Rfd1 {[%clk 0:02:04]}  Rc8 {[%clk 0:02:43]} 14. Bb1 {[%clk 0:01:28]}  f5 {[%clk 0:02:27]} 15. Nxd5 {[%clk 0:01:08]}  exd5 {[%clk 0:02:23]} 16. Bf4 {[%clk 0:01:05]}  dxe5 {[%clk 0:02:16]} 17. Nxe5 {[%clk 0:01:04]}  Nxe5 {[%clk 0:02:08]} 18. Qxe5 {[%clk 0:00:47]}  Bc6 {[%clk 0:01:54]} 19. Bxf5 {[%clk 0:00:42]}  Ra8 {[%clk 0:01:40]} 20. Qe6+ {[%clk 0:00:43]}  Kh8 {[%clk 0:01:39]} 21. Qg6 {[%clk 0:00:43]}  Rxf5 {[%clk 0:01:31]} 22. Qxf5 {[%clk 0:00:43]}  Qb6 {[%clk 0:01:24]} 23. Be5 {[%clk 0:00:42]}  Rf8 {[%clk 0:01:19]} 24. Qe6 {[%clk 0:00:40]}  Bg5 {[%clk 0:01:10]} 25. Rc2 {[%clk 0:00:20]}  Qb5 {[%clk 0:01:03]} 26. h4 {[%clk 0:00:17]}  Bd7 {[%clk 0:01:02]} 27. Qd6 {[%clk 0:00:14]}  Bf6 {[%clk 0:00:56]} 28. Qxf8+ {[%clk 0:00:14]}  Kh7 {[%clk 0:00:54]} 29. Bxf6 {[%clk 0:00:14]}  gxf6 {[%clk 0:00:47]} 30. Qf7+ {[%clk 0:00:14]}  Kh8 {[%clk 0:00:46]} 31. Re1 {[%clk 0:00:15]}  Qa4 {[%clk 0:00:31]} 32. Rc8+ {[%clk 0:00:12]}  Bxc8 {[%clk 0:00:28]} 33. Re8+ {[%clk 0:00:13]}  Qxe8 {[%clk 0:00:27]} 34. Qxe8+ {[%clk 0:00:14]}  Kg7 {[%clk 0:00:27]} 35. Qxc8 {[%clk 0:00:14]} 1-0


[Site "https://www.chess.com"]

[Event "Titled Tuesday Blitz May 2 Early 2023"]
[White "Bashirli, Saadat"]
[Black "Necula, Iulian"]
[WhiteFideId "13429990"]
[BlackFideId "1232380"]
[WhiteElo "1408"]
[BlackElo "1790"]
[Result "0-1"]
[Round "05"]
[TimeControl "180+2"]
[Date "2023.05.02"]
[WhiteClock "0:00:35"]
[BlackClock "0:00:38"]

1. e4 {[%clk 0:03:00]}  d6 {[%clk 0:03:00]} 2. d4 {[%clk 0:02:59]}  Nf6 {[%clk 0:03:01]} 3. Nc3 {[%clk 0:02:56]}  e5 {[%clk 0:03:01]} 4. dxe5 {[%clk 0:02:55]}  dxe5 {[%clk 0:03:02]} 5. Qxd8+ {[%clk 0:02:54]}  Kxd8 {[%clk 0:03:03]} 6. Bg5 {[%clk 0:02:49]}  Be6 {[%clk 0:02:59]} 7. O-O-O+ {[%clk 0:02:48]}  Bd6 {[%clk 0:02:51]} 8. Nf3 {[%clk 0:02:46]}  Ke7 {[%clk 0:02:48]} 9. Nb5 {[%clk 0:02:45]}  Nc6 {[%clk 0:02:40]} 10. Nc3 {[%clk 0:02:38]}  a6 {[%clk 0:02:31]} 11. b3 {[%clk 0:02:34]}  h6 {[%clk 0:02:29]} 12. a3 {[%clk 0:02:33]}  hxg5 {[%clk 0:02:28]} 13. Nxg5 {[%clk 0:02:30]}  Nd4 {[%clk 0:02:24]} 14. Kb2 {[%clk 0:02:20]}  b5 {[%clk 0:02:23]} 15. Bd3 {[%clk 0:02:14]}  Rab8 {[%clk 0:02:18]} 16. g3 {[%clk 0:02:08]}  Ng4 {[%clk 0:02:06]} 17. Rdf1 {[%clk 0:01:59]}  f6 {[%clk 0:02:01]} 18. Nxe6 {[%clk 0:01:57]}  Nxe6 {[%clk 0:01:58]} 19. Nd5+ {[%clk 0:01:55]}  Kd7 {[%clk 0:01:56]} 20. Be2 {[%clk 0:01:48]}  Nh6 {[%clk 0:01:54]} 21. f4 {[%clk 0:01:45]}  exf4 {[%clk 0:01:48]} 22. gxf4 {[%clk 0:01:46]}  c6 {[%clk 0:01:39]} 23. f5 {[%clk 0:01:39]}  cxd5 {[%clk 0:01:35]} 24. fxe6+ {[%clk 0:01:38]}  Kxe6 {[%clk 0:01:36]} 25. exd5+ {[%clk 0:01:36]}  Kxd5 {[%clk 0:01:30]} 26. Rd1+ {[%clk 0:01:36]}  Ke6 {[%clk 0:01:27]} 27. Rhe1 {[%clk 0:01:34]}  Be5+ {[%clk 0:01:27]} 28. c3 {[%clk 0:01:33]}  Rhd8 {[%clk 0:01:25]} 29. Rg1 {[%clk 0:01:22]}  Rxd1 {[%clk 0:01:23]} 30. Rxd1 {[%clk 0:01:23]}  Bxh2 {[%clk 0:01:20]} 31. Re1 {[%clk 0:01:20]}  Be5 {[%clk 0:01:20]} 32. Bf3 {[%clk 0:01:18]}  a5 {[%clk 0:01:16]} 33. Rg1 {[%clk 0:01:15]}  g5 {[%clk 0:01:14]} 34. Kc2 {[%clk 0:01:09]}  b4 {[%clk 0:01:11]} 35. axb4 {[%clk 0:01:08]}  axb4 {[%clk 0:01:12]} 36. c4 {[%clk 0:01:08]}  Ke7 {[%clk 0:00:58]} 37. Rd1 {[%clk 0:01:02]}  Nf5 {[%clk 0:00:57]} 38. Kb1 {[%clk 0:00:59]}  Nd4 {[%clk 0:00:55]} 39. Bd5 {[%clk 0:00:54]}  Nxb3 {[%clk 0:00:54]} 40. Kc2 {[%clk 0:00:51]}  Nd4+ {[%clk 0:00:53]} 41. Kd3 {[%clk 0:00:50]}  b3 {[%clk 0:00:53]} 42. Rh1 {[%clk 0:00:48]}  b2 {[%clk 0:00:51]} 43. Rh7+ {[%clk 0:00:47]}  Kd6 {[%clk 0:00:51]} 44. Ra7 {[%clk 0:00:40]}  b1=Q+ {[%clk 0:00:50]} 45. Ke3 {[%clk 0:00:40]}  Nf5+ {[%clk 0:00:47]} 46. Kf3 {[%clk 0:00:37]}  Rb3+ {[%clk 0:00:46]} 47. Kg4 {[%clk 0:00:37]}  Rg3+ {[%clk 0:00:42]} 48. Kh5 {[%clk 0:00:36]}  Ne7 {[%clk 0:00:38]} 49. Ra6+ {[%clk 0:00:35]}  Kc5 {[%clk 0:00:38]} 0-1


[Site "https://www.chess.com"]

[Event "Titled Tuesday Blitz May 2 Early 2023"]
[White "Lamaze, Simon"]
[Black "Deac, Bogdan-Daniel"]
[WhiteFideId "36069264"]
[BlackFideId "1226380"]
[WhiteElo "2272"]
[BlackElo "2649"]
[Result "1-0"]
[Round "06"]
[TimeControl "180+2"]
[Date "2023.05.02"]
[WhiteClock "0:01:06"]
[BlackClock "0:00:08"]

1. d4 {[%clk 0:02:59]}  f5 {[%clk 0:02:59]} 2. g3 {[%clk 0:02:58]}  Nf6 {[%clk 0:02:59]} 3. Bg2 {[%clk 0:02:58]}  g6 {[%clk 0:03:00]} 4. c4 {[%clk 0:02:57]}  Bg7 {[%clk 0:03:00]} 5. Nc3 {[%clk 0:02:58]}  O-O {[%clk 0:03:00]} 6. Nh3 {[%clk 0:02:58]}  d6 {[%clk 0:02:56]} 7. d5 {[%clk 0:02:58]}  Nbd7 {[%clk 0:02:29]} 8. O-O {[%clk 0:02:56]}  Nb6 {[%clk 0:02:25]} 9. Qd3 {[%clk 0:02:55]}  Nfd7 {[%clk 0:02:23]} 10. b3 {[%clk 0:02:50]}  e5 {[%clk 0:02:04]} 11. dxe6 {[%clk 0:02:48]}  Nc5 {[%clk 0:02:04]} 12. Qc2 {[%clk 0:02:47]}  Bxe6 {[%clk 0:02:00]} 13. Bb2 {[%clk 0:02:47]}  c6 {[%clk 0:01:55]} 14. Rad1 {[%clk 0:02:44]}  Qe7 {[%clk 0:01:54]} 15. Rd2 {[%clk 0:02:40]}  Rad8 {[%clk 0:01:46]} 16. Rfd1 {[%clk 0:02:33]}  Bf7 {[%clk 0:01:43]} 17. Nf4 {[%clk 0:02:26]}  Rfe8 {[%clk 0:01:39]} 18. e3 {[%clk 0:02:25]}  a5 {[%clk 0:01:36]} 19. Nd3 {[%clk 0:02:19]}  Nbd7 {[%clk 0:01:05]} 20. Nxc5 {[%clk 0:02:10]}  Nxc5 {[%clk 0:01:06]} 21. Ne2 {[%clk 0:02:08]}  Bxb2 {[%clk 0:01:03]} 22. Qxb2 {[%clk 0:02:09]}  a4 {[%clk 0:01:03]} 23. h4 {[%clk 0:02:02]}  axb3 {[%clk 0:01:02]} 24. axb3 {[%clk 0:02:03]}  Ne4 {[%clk 0:01:00]} 25. Bxe4 {[%clk 0:02:02]}  fxe4 {[%clk 0:01:01]} 26. Nf4 {[%clk 0:02:01]}  h6 {[%clk 0:00:54]} 27. h5 {[%clk 0:01:25]}  g5 {[%clk 0:00:50]} 28. Ng6 {[%clk 0:01:25]}  Bxg6 {[%clk 0:00:50]} 29. hxg6 {[%clk 0:01:26]}  Qe6 {[%clk 0:00:51]} 30. Qa3 {[%clk 0:01:23]}  c5 {[%clk 0:00:50]} 31. b4 {[%clk 0:01:21]}  b6 {[%clk 0:00:45]} 32. bxc5 {[%clk 0:01:20]}  bxc5 {[%clk 0:00:44]} 33. Qa6 {[%clk 0:01:20]}  d5 {[%clk 0:00:16]} 34. Qxe6+ {[%clk 0:01:18]}  Rxe6 {[%clk 0:00:17]} 35. Rxd5 {[%clk 0:01:19]}  Rxd5 {[%clk 0:00:14]} 36. Rxd5 {[%clk 0:01:20]}  Rc6 {[%clk 0:00:11]} 37. g4 {[%clk 0:01:18]}  Kg7 {[%clk 0:00:10]} 38. Re5 {[%clk 0:01:19]}  Kxg6 {[%clk 0:00:10]} 39. Rxe4 {[%clk 0:01:19]}  Kf6 {[%clk 0:00:11]} 40. Kg2 {[%clk 0:01:18]}  Ra6 {[%clk 0:00:10]} 41. Kg3 {[%clk 0:01:11]}  Ra4 {[%clk 0:00:10]} 42. f4 {[%clk 0:01:11]}  gxf4+ {[%clk 0:00:10]} 43. exf4 {[%clk 0:01:12]}  Ra3+ {[%clk 0:00:10]} 44. Kh4 {[%clk 0:01:11]}  Ra1 {[%clk 0:00:09]} 45. Re5 {[%clk 0:01:08]}  Rh1+ {[%clk 0:00:08]} 46. Kg3 {[%clk 0:01:09]}  Rg1+ {[%clk 0:00:09]} 47. Kh3 {[%clk 0:01:09]}  Rf1 {[%clk 0:00:09]} 48. Rf5+ {[%clk 0:01:08]}  Kg6 {[%clk 0:00:08]} 49. Kg2 {[%clk 0:01:08]}  Rc1 {[%clk 0:00:07]} 50. Rxc5 {[%clk 0:01:08]}  Rc3 {[%clk 0:00:08]} 51. Rc6+ {[%clk 0:01:06]}  Kg7 {[%clk 0:00:08]} 52. f5 {[%clk 0:01:06]} 1-0


[Site "https://www.chess.com"]

[Event "Titled Tuesday Blitz May 2 Early 2023"]
[White "Beerdsen, Thomas"]
[Black "Martinez Alcantara, Jose Eduardo"]
[WhiteFideId "1030108"]
[BlackFideId "3805662"]
[WhiteElo "2547"]
[BlackElo "2711"]
[Result "1-0"]
[Round "06"]
[TimeControl "180+2"]
[Date "2023.05.02"]
[WhiteClock "0:02:20"]
[BlackClock "0:02:05"]

1. e4 {[%clk 0:03:00]}  c5 {[%clk 0:02:59]} 2. Nf3 {[%clk 0:03:00]}  d6 {[%clk 0:02:59]} 3. d4 {[%clk 0:03:00]}  cxd4 {[%clk 0:03:00]} 4. Nxd4 {[%clk 0:03:01]}  a6 {[%clk 0:03:01]} 5. Bc4 {[%clk 0:02:56]}  e6 {[%clk 0:03:00]} 6. g4 {[%clk 0:02:52]}  b5 {[%clk 0:02:59]} 7. Bb3 {[%clk 0:02:52]}  Bb7 {[%clk 0:03:00]} 8. Nc3 {[%clk 0:02:52]}  Nf6 {[%clk 0:02:59]} 9. Qe2 {[%clk 0:02:46]}  b4 {[%clk 0:02:55]} 10. Na4 {[%clk 0:02:44]}  h6 {[%clk 0:02:37]} 11. Be3 {[%clk 0:02:32]}  Nbd7 {[%clk 0:02:23]} 12. O-O-O {[%clk 0:02:27]}  Qc7 {[%clk 0:02:24]} 13. g5 {[%clk 0:02:22]}  hxg5 {[%clk 0:02:23]} 14. Bxg5 {[%clk 0:02:23]}  Nc5 {[%clk 0:02:14]} 15. Nxc5 {[%clk 0:02:22]}  dxc5 {[%clk 0:02:14]} 16. Ba4+ {[%clk 0:02:20]}  Ke7 {[%clk 0:02:05]} 17. Nf5+ {[%clk 0:02:20]} 1-0


[Site "https://www.chess.com"]